bitfinex/quotes_ETHUSD_20230105
["timestamp","ask_amount","ask_price","bid_price","bid_amount"]
[1672907538752,20.25489815,1250.9,1250.8,1.0169934]
[1672907539215,15.29690921,1250.9,1250.8,1.0169934]
[1672907539425,21.23921199,1250.9,1250.8,1.0169934]
[1672907541701,24.73921199,1250.9,1250.8,1.0169934]
[1672907541881,21.23921199,1250.9,1250.8,1.0169934]
[1672907542322,15.29690921,1250.9,1250.8,1.0169934]
[1672907543728,20.25569889,1250.9,1250.8,1.0169934]
[1672907545259,20.25569889,1250.9,1250.8,0.91529407]
[1672907546413,15.25569889,1250.9,1250.8,0.91529407]
[1672907547407,20.25569889,1250.9,1250.8,0.91529407]
[1672907548413,15.29690921,1250.9,1250.8,0.91529407]
[1672907548605,20.25516186,1250.9,1250.8,0.91529407]
[1672907552133,20.25516186,1250.9,1250.8,0.82376467]
[1672907553431,15.25516186,1250.9,1250.8,0.82376467]
[1672907554481,20.25516186,1250.9,1250.8,0.82376467]
[1672907558324,15.29690921,1250.9,1250.8,0.82376467]
[1672907558767,14.69690921,1250.9,1250.8,0.82376467]
[1672907559210,14.69690921,1250.9,1250.8,0.74138821]
[1672907560430,9.69690921,1250.9,1250.8,0.74138821]
[1672907561375,14.69690921,1250.9,1250.8,0.74138821]
[1672907563216,19.65633356,1250.9,1250.8,0.74138821]
[1672907566319,19.65633356,1250.9,1250.8,0.66724939]
[1672907567414,9.69690921,1250.9,1250.8,0.66724939]
[1672907567572,14.65680159,1250.9,1250.8,0.66724939]
[1672907568435,14.69690921,1250.9,1250.8,0.66724939]
[1672907570205,18.19690921,1250.9,1250.8,0.66724939]
[1672907570707,14.69690921,1250.9,1250.8,0.66724939]
[1672907571523,24.13921199,1250.9,1250.8,0.66724939]
[1672907572940,20.63921199,1250.9,1250.8,0.66724939]
[1672907573387,20.63921199,1250.9,1250.8,0.60052446]
[1672907573830,24.13921199,1250.9,1250.8,0.60052446]
[1672907574417,19.13921199,1250.9,1250.8,0.60052446]
[1672907574743,15.63921199,1250.9,1250.8,0.60052446]
[1672907574958,19.13921199,1250.9,1250.8,0.60052446]
[1672907575573,20.63921199,1250.9,1250.8,0.60052446]
[1672907575783,24.13921199,1250.9,1250.8,0.60052446]
[1672907577321,20.63921199,1250.9,1250.8,0.60052446]
[1672907577624,24.13921199,1250.9,1250.8,0.60052446]
[1672907580090,20.63921199,1250.9,1250.8,0.60052446]
[1672907580336,20.63921199,1250.9,1250.8,0.54047202]
[1672907581473,15.63921199,1250.9,1250.8,0.54047202]
[1672907582672,20.63921199,1250.9,1250.8,0.54047202]
[1672907586631,17.13921199,1250.9,1250.8,0.54047202]
[1672907586819,11.19690921,1250.9,1250.8,0.54047202]
[1672907587263,17.13921199,1250.9,1250.8,0.48642482]
[1672907588563,12.13921199,1250.9,1250.8,0.48642482]
[1672907589485,17.13921199,1250.9,1250.8,0.48642482]
[1672907589697,11.19690921,1250.9,1250.8,0.48642482]
[1672907590109,17.13921199,1250.9,1250.8,0.48642482]
[1672907591838,11.19690921,1250.9,1250.8,0.48642482]
[1672907594495,11.19690921,1250.9,1250.8,0.43778234]
[1672907595491,6.19690921,1250.9,1250.8,0.43778234]
[1672907595707,9.69690921,1250.9,1250.8,0.43778234]
[1672907596517,14.69690921,1250.9,1250.8,0.43778234]
[1672907598644,20.63921199,1250.9,1250.8,0.43778234]
[1672907601289,20.63921199,1250.9,1250.8,0.39400411]
[1672907601789,24.13921199,1250.9,1250.8,0.39400411]
[1672907602440,20.63921199,1250.9,1250.8,0.39400411]
[1672907602797,15.63921199,1250.9,1250.8,0.39400411]
[1672907603519,20.63921199,1250.9,1250.8,0.39400411]
[1672907605449,20.63921199,1250.9,1250.7,0.06029439]
[1672907605637,9.96130903,1250.8,1250.7,0.06029439]
[1672907605847,10.02730903,1250.8,1250.7,0.06029439]
[1672907606096,12.69736113,1250.8,1250.7,0.06029439]
[1672907606463,12.69736113,1250.8,1250.7,1.36435976]
[1672907608261,12.69736113,1250.8,1250.7,1.22792379]
[1672907612027,12.64736113,1250.8,1250.7,1.22792379]
[1672907612242,7.69736113,1250.8,1250.7,1.22792379]
[1672907613355,12.69736113,1250.8,1250.7,1.22792379]
[1672907614861,7.7360521,1250.8,1250.7,1.22792379]
[1672907615343,7.7360521,1250.8,1250.7,1.10513142]
[1672907615491,11.2360521,1250.8,1250.7,1.10513142]
[1672907616281,16.19518149,1250.8,1250.7,1.10513142]
[1672907616492,11.2360521,1250.8,1250.7,1.10513142]
[1672907617449,11.2360521,1250.8,1250.6,8.13099015]
[1672907617761,9.95916822,1250.7,1250.6,8.13099015]
[1672907617902,10.02516822,1250.7,1250.6,0.11739015]
[1672907618115,5.066,1250.7,1250.6,0.05139015]
[1672907618326,5.066,1250.7,1250.6,1.2156579]
[1672907619202,0.066,1250.7,1250.6,1.2156579]
[1672907619557,14.69522032,1250.8,1250.6,1.2156579]
[1672907620025,4.95916822,1250.7,1250.6,1.2156579]
[1672907620237,5.0,1250.7,1250.6,1.2156579]
[1672907620499,5.066,1250.7,1250.6,1.2156579]
[1672907622016,9.26317993,1250.7,1250.6,1.2156579]
[1672907622602,5.066,1250.7,1250.6,1.2156579]
[1672907624912,10.02516822,1250.7,1250.6,1.09409212]
[1672907625276,12.29892053,1250.7,1250.6,1.09409212]
[1672907628550,10.02516822,1250.7,1250.6,1.09409212]
[1672907630485,10.02516822,1250.7,1250.5,0.03168812]
[1672907630635,4.19574671,1250.6,1250.5,0.03168812]
[1672907630842,9.19574671,1250.6,1250.5,0.03168812]
[1672907631047,9.26174671,1250.6,1250.5,0.03168812]
[1672907631312,4.26174671,1250.6,1250.5,0.03168812]
[1672907631521,4.19574671,1250.6,1250.5,1.19317037]
[1672907632525,9.19574671,1250.6,1250.5,1.19317037]
[1672907632736,9.26174671,1250.6,1250.5,1.19317037]
[1672907638910,9.31174671,1250.6,1250.5,1.19317037]
[1672907640855,9.26174671,1250.6,1250.5,1.19317037]
[1672907641018,9.31174671,1250.6,1250.5,1.19317037]
[1672907643110,14.2988482,1250.6,1250.5,1.19317037]
[1672907643319,15.06226971,1250.6,1250.5,1.19317037]
[1672907643584,15.66236971,1250.6,1250.5,1.07385334]
[1672907643743,12.16236971,1250.6,1250.5,1.07385334]
[1672907644905,12.11236971,1250.6,1250.5,1.07385334]
[1672907646648,11.34894571,1250.6,1250.5,1.07385334]
[1672907646794,7.15320149,1250.6,1250.5,1.07385334]
[1672907647212,11.34860039,1250.6,1250.5,1.07385334]
[1672907647526,11.34853183,1250.6,1250.5,1.07385334]
[1672907648212,7.15320149,1250.6,1250.5,1.07385334]
[1672907649772,11.34855065,1250.6,1250.5,1.07385334]
[1672907649958,11.34846193,1250.6,1250.5,1.07385334]
[1672907650202,7.15320149,1250.6,1250.5,1.07385334]
[1672907651227,11.34838956,1250.6,1250.5,1.07385334]
[1672907652613,11.34858054,1250.6,1250.5,1.07385334]
[1672907652791,7.15320149,1250.6,1250.5,1.07385334]
[1672907653423,2.15320149,1250.6,1250.5,1.07385334]
[1672907653671,7.04636971,1250.6,1250.5,1.07385334]
[1672907653878,7.11236971,1250.6,1250.5,1.07385334]
[1672907654094,2.15320149,1250.6,1250.5,1.07385334]
[1672907654280,7.08720149,1250.6,1250.5,1.07385334]
[1672907654622,7.15320149,1250.6,1250.5,1.07385334]
[1672907656215,12.11236971,1250.6,1250.5,1.07385334]
[1672907656879,12.11236971,1250.6,1250.5,0.96646801]
[1672907661777,15.61236971,1250.6,1250.5,0.96646801]
[1672907661977,12.11236971,1250.6,1250.5,0.96646801]
[1672907662870,15.61236971,1250.6,1250.5,0.96646801]
[1672907663085,12.11236971,1250.6,1250.5,0.96646801]
[1672907663805,12.11236971,1250.6,1250.5,0.86982121]
[1672907664582,7.11236971,1250.6,1250.5,0.86982121]
[1672907665096,10.61236971,1250.6,1250.5,0.86982121]
[1672907665622,15.61236971,1250.6,1250.5,0.86982121]
[1672907666162,15.01226971,1250.6,1250.5,0.86982121]
[1672907667602,18.51226971,1250.6,1250.5,0.86982121]
[1672907667821,15.01226971,1250.6,1250.5,0.86982121]
[1672907668087,18.51226971,1250.6,1250.5,0.86982121]
[1672907669377,15.01226971,1250.6,1250.5,0.86982121]
[1672907669583,18.51226971,1250.6,1250.5,0.86982121]
[1672907670934,18.51226971,1250.6,1250.5,0.78283909]
[1672907671415,18.51226971,1250.6,1250.5,1.00042098]
[1672907671997,15.01226971,1250.6,1250.5,1.00042098]
[1672907672421,23.43726971,1250.6,1250.5,1.00042098]
[1672907677918,23.43726971,1250.6,1250.5,0.90037889]
[1672907678443,18.47810149,1250.6,1250.5,0.90037889]
[1672907680872,14.97810149,1250.6,1250.5,0.90037889]
[1672907681090,19.93388612,1250.6,1250.5,0.90037889]
[1672907681822,23.43388612,1250.6,1250.5,0.90037889]
[1672907682556,18.47810149,1250.6,1250.5,0.90037889]
[1672907683339,24.42040427,1250.6,1250.5,0.90037889]
[1672907683990,18.47810149,1250.6,1250.5,0.90037889]
[1672907685020,18.47810149,1250.6,1250.5,0.81034101]
[1672907685479,24.42040427,1250.6,1250.5,0.81034101]
[1672907685882,18.47810149,1250.6,1250.5,0.81034101]
[1672907686812,24.42040427,1250.6,1250.5,0.81034101]
[1672907690838,28.63955378,1250.6,1250.5,0.81034101]
[1672907691053,23.63955378,1250.6,1250.5,0.81034101]
[1672907692059,28.63955378,1250.6,1250.5,0.72930691]
[1672907693096,28.63955378,1250.6,1250.4,0.09555725]
[1672907693304,14.05669799,1250.5,1250.4,0.09555725]
[1672907693514,20.54232317,1250.5,1250.4,0.09555725]
[1672907696013,20.54232317,1250.5,1250.4,7.25e-06]
[1672907696218,20.54232317,1250.5,1250.3,0.05982192]
[1672907696436,6.5,1250.4,1250.3,0.05982192]
[1672907696644,11.566,1250.4,1250.3,0.05982192]
[1672907697320,12.79256435,1250.4,1250.3,0.05982192]
[1672907698664,12.26154379,1250.4,1250.3,0.05982192]
[1672907701041,7.26154379,1250.4,1250.3,0.05982192]
[1672907701249,3.066,1250.4,1250.3,0.05982192]
[1672907701455,7.19552428,1250.4,1250.3,0.05982192]
[1672907701709,7.26152428,1250.4,1250.3,0.05982192]
[1672907702091,12.26152428,1250.4,1250.3,0.05982192]
[1672907703220,8.066,1250.4,1250.3,0.05982192]
[1672907704501,9.77023232,1250.4,1250.3,0.05982192]
[1672907705580,14.72673031,1250.4,1250.3,0.05982192]
[1672907705917,9.77023232,1250.4,1250.3,0.05982192]
[1672907707974,14.72673031,1250.4,1250.3,0.05982192]
[1672907708188,4.77023232,1250.4,1250.3,0.05982192]
[1672907708401,4.70423232,1250.4,1250.3,0.05982192]
[1672907709190,14.66073031,1250.4,1250.3,0.05982192]
[1672907709397,14.72673031,1250.4,1250.3,0.05982192]
[1672907711485,14.72673031,1250.4,1250.2,0.07587313]
[1672907711486,15.18923232,1250.4,1250.2,0.06989094]
[1672907711657,13.45570291,1250.3,1250.2,0.06989094]
[1672907711867,16.52170291,1250.3,1250.2,0.06989094]
[1672907712758,17.53113643,1250.3,1250.2,0.06989094]
[1672907712965,17.58113643,1250.3,1250.2,0.06989094]
[1672907713627,14.08113643,1250.3,1250.2,0.06989094]
[1672907713778,9.12543352,1250.3,1250.2,0.06989094]
[1672907714765,12.62543352,1250.3,1250.2,0.06989094]
[1672907714938,9.07543352,1250.3,1250.2,0.06989094]
[1672907715859,13.26671124,1250.3,1250.2,0.06989094]
[1672907716312,13.26674061,1250.3,1250.2,0.06989094]
[1672907717143,9.07543352,1250.3,1250.2,0.06989094]
[1672907718445,9.07543352,1250.3,1250.2,0.06290185]
[1672907718807,14.03113643,1250.3,1250.2,0.06290185]
[1672907719801,17.53113643,1250.3,1250.2,0.06290185]
[1672907721780,18.13143643,1250.3,1250.2,0.06290185]
[1672907722374,14.63143643,1250.3,1250.2,0.06290185]
[1672907723319,18.13143643,1250.3,1250.2,0.06290185]
[1672907725559,18.13143643,1250.3,1250.2,0.05661167]
[1672907726392,24.04558594,1250.3,1250.2,0.05661167]
[1672907731056,24.04558594,1250.3,1250.2,1.67e-06]
[1672907731461,22.12058594,1250.3,1250.2,1.67e-06]
[1672907731796,22.12058594,1250.3,1250.1,0.0746372]
[1672907732163,10.68931975,1250.2,1250.1,0.0746372]
[1672907732335,19.03631032,1250.2,1250.1,0.0746372]
[1672907733782,19.03631032,1250.2,1250.1,0.06717349]
[1672907736060,14.84699057,1250.2,1250.1,0.06717349]
[1672907736853,11.34699057,1250.2,1250.1,0.06717349]
[1672907740149,11.30269348,1250.2,1250.1,0.06717349]
[1672907740266,8.02170291,1250.2,1250.1,0.06717349]
[1672907740612,15.51085242,1250.2,1250.1,0.06045615]
[1672907741016,15.55514951,1250.2,1250.1,0.06045615]
[1672907742489,19.05514951,1250.2,1250.1,0.06045615]
[1672907743978,24.01085242,1250.2,1250.1,0.06045615]
[1672907744148,23.07291101,1250.2,1250.1,0.06045615]
[1672907744359,19.57291101,1250.2,1250.1,0.06045615]
[1672907744798,24.87107013,1250.2,1250.1,6.15e-06]
[1672907745006,25.47137013,1250.2,1250.1,6.15e-06]
[1672907746185,19.52906735,1250.2,1250.1,6.15e-06]
[1672907746390,3.5,1250.1,1250.0,0.09673046]
[1672907746602,21.27670448,1250.1,1250.0,0.09673046]
[1672907746836,21.34270448,1250.1,1250.0,0.09673046]
[1672907747026,19.41770448,1250.1,1250.0,0.09673046]
[1672907747699,19.41770448,1250.1,1250.0,0.08705742]
[1672907748967,23.40685399,1250.1,1250.0,0.08705742]
[1672907752863,15.91770448,1250.1,1250.0,0.08705742]
[1672907753015,13.61479774,1250.1,1250.0,0.08705742]
[1672907753580,13.61479774,1250.1,1250.0,7.42e-06]
[1672907754973,3.5,1250.0,1249.9,0.09377841]
[1672907755123,16.28842236,1250.0,1249.9,0.09377841]
[1672907755332,18.02506293,1250.0,1249.9,0.09377841]
[1672907755538,20.322409,1250.0,1249.9,0.09377841]
[1672907755789,21.33314381,1250.0,1249.9,0.09377841]
[1672907755962,20.73274381,1250.0,1249.9,0.09377841]
[1672907759172,15.78434607,1250.0,1249.9,0.09377841]
[1672907762007,15.78434607,1250.0,1249.9,0.08440057]
[1672907762649,19.77349558,1250.0,1249.9,0.08440057]
[1672907763316,23.95863399,1250.0,1249.9,0.08440057]
[1672907763567,19.77349558,1250.0,1249.9,0.08440057]
[1672907764577,19.77349558,1250.0,1249.9,1.59394415]
[1672907764785,19.72189332,1250.0,1249.9,1.59394415]
[1672907765644,24.72189332,1250.0,1249.9,1.59394415]
[1672907767649,19.77349558,1250.0,1249.9,1.59394415]
[1672907768000,24.72189332,1250.0,1249.9,1.59394415]
[1672907768225,26.39253389,1250.0,1249.9,1.59394415]
[1672907768529,24.72189332,1250.0,1249.9,1.59394415]
[1672907768682,24.72189332,1250.0,1249.9,1.43454974]
[1672907769943,27.12545257,1250.0,1249.9,1.43454974]
[1672907770124,3.5,1249.9,1249.8,0.10335257]
[1672907770432,31.813026,1249.9,1249.8,0.10335257]
[1672907770656,34.65925453,1249.9,1249.8,0.10335257]
[1672907770954,39.65925453,1249.9,1249.8,0.10335257]
[1672907771382,52.86394823,1249.9,1249.8,0.10335257]
[1672907771527,47.9227644,1249.9,1249.8,0.10335257]
[1672907772014,44.45392036,1249.9,1249.8,0.10335257]
[1672907772161,39.5127644,1249.9,1249.8,0.10335257]
[1672907772372,44.45374886,1249.9,1249.8,0.10335257]
[1672907773017,44.45373884,1249.9,1249.8,5.257e-05]
[1672907774475,39.5127644,1249.9,1249.8,5.257e-05]
[1672907774806,44.45248811,1249.9,1249.8,5.257e-05]
[1672907775002,39.5127644,1249.9,1249.8,5.257e-05]
[1672907775750,3.5,1249.8,1249.7,0.63803916]
[1672907775963,27.05371196,1249.8,1249.7,0.63803916]
[1672907776168,27.59827121,1249.8,1249.7,0.63803916]
[1672907776574,22.65976735,1249.8,1249.7,0.63803916]
[1672907777578,26.84058898,1249.8,1249.7,0.63803916]
[1672907780212,27.59827121,1249.8,1249.7,0.63803916]
[1672907781091,22.65976735,1249.8,1249.7,0.63803916]
[1672907781445,25.67627121,1249.8,1249.7,0.63803916]
[1672907781637,20.73776735,1249.8,1249.7,0.63803916]
[1672907782407,25.67627121,1249.8,1249.7,0.63803916]
[1672907782619,15.73776735,1249.8,1249.7,0.63803916]
[1672907782788,18.00704243,1249.8,1249.7,0.57423525]
[1672907783005,23.00704243,1249.8,1249.7,0.57423525]
[1672907784076,18.82576735,1249.8,1249.7,0.57423525]
[1672907785071,22.5296469,1249.8,1249.7,0.57423525]
[1672907785464,22.52963254,1249.8,1249.7,0.57423525]
[1672907786927,22.29963254,1249.8,1249.7,0.57423525]
[1672907787241,22.29973352,1249.8,1249.7,0.57423525]
[1672907788033,18.1172081,1249.8,1249.7,0.57423525]
[1672907788278,23.05571196,1249.8,1249.7,0.57423525]
[1672907789745,23.05571196,1249.8,1249.7,0.49386949]
[1672907793849,18.05571196,1249.8,1249.7,0.49386949]
[1672907794994,19.55571196,1249.8,1249.7,0.49386949]
[1672907795208,16.99365337,1249.8,1249.7,0.49386949]
[1672907795416,13.00450386,1249.8,1249.7,0.49386949]
[1672907795622,9.25165786,1249.8,1249.7,0.49386949]
[1672907796355,8.65440001,1249.8,1249.7,0.49386949]
[1672907796529,5.066,1249.8,1249.7,0.49386949]
[1672907796839,8.65440001,1249.8,1249.7,0.49386949]
[1672907797052,8.70440001,1249.8,1249.7,0.49386949]
[1672907799046,8.65440001,1249.8,1249.7,0.49386949]
[1672907799258,8.70440001,1249.8,1249.7,0.49386949]
[1672907800204,5.116,1249.8,1249.7,0.49386949]
[1672907801214,9.30165786,1249.8,1249.7,0.49386949]
[1672907811530,11.76867403,1249.8,1249.7,0.49386949]
[1672907811743,7.58301617,1249.8,1249.7,0.44448255]
[1672907811957,11.08301617,1249.8,1249.7,0.44448255]
[1672907813326,11.77021565,1249.8,1249.7,0.44448255]
[1672907813500,11.72021565,1249.8,1249.7,0.44448255]
[1672907814283,12.47152003,1249.8,1249.7,0.44448255]
[1672907815235,7.53301617,1249.8,1249.7,0.44448255]
[1672907815473,12.47152003,1249.8,1249.7,0.44448255]
[1672907815835,7.53301617,1249.8,1249.7,0.44448255]
[1672907816039,11.03301617,1249.8,1249.7,0.44448255]
[1672907816714,15.97152003,1249.8,1249.7,0.44448255]
[1672907816886,11.03301617,1249.8,1249.7,0.44448255]
[1672907817414,15.22099613,1249.8,1249.7,0.44448255]
[1672907817783,11.03301617,1249.8,1249.7,0.44448255]
[1672907818142,15.219987,1249.8,1249.7,0.44448255]
[1672907818400,15.22017157,1249.8,1249.7,0.44448255]
[1672907818586,7.53301617,1249.8,1249.7,0.4000343]
[1672907818899,11.03301617,1249.8,1249.7,0.4000343]
[1672907819355,15.22035512,1249.8,1249.7,0.4000343]
[1672907819580,18.85266568,1249.8,1249.7,3.43e-05]
[1672907819716,24.79496846,1249.8,1249.7,3.43e-05]
[1672907819932,23.79850745,1249.8,1249.7,3.43e-05]
[1672907820138,18.85266568,1249.8,1249.7,3.43e-05]
[1672907820473,23.5685946,1249.8,1249.7,3.43e-05]
[1672907825679,3.5,1249.7,1249.6,0.2274567]
[1672907825896,18.3947744,1249.7,1249.6,0.2274567]
[1672907826064,18.4607744,1249.7,1249.6,0.2274567]
[1672907829199,13.4607744,1249.7,1249.6,0.2274567]
[1672907829408,10.75391494,1249.7,1249.6,0.2274567]
[1672907830055,15.75391494,1249.7,1249.6,0.2274567]
[1672907830479,11.566,1249.7,1249.6,0.2274567]
[1672907830694,16.51192892,1249.7,1249.6,0.2274567]
[1672907832695,16.51192892,1249.7,1249.6,0.20471104]
[1672907832959,20.17820377,1249.7,1249.6,0.20471104]
[1672907836167,24.16735328,1249.7,1249.6,0.20471104]
[1672907839636,24.16735328,1249.7,1249.6,0.18423994]
[1672907840290,19.16735328,1249.7,1249.6,0.18423994]
[1672907840689,24.16735328,1249.7,1249.6,0.18423994]
[1672907842797,20.17820377,1249.7,1249.6,0.18423994]
[1672907846336,16.51192892,1249.7,1249.6,0.18423994]
[1672907846853,11.51192892,1249.7,1249.6,0.16581595]
[1672907847007,6.566,1249.7,1249.6,0.16581595]
[1672907847678,16.51192892,1249.7,1249.6,0.16581595]
[1672907853186,13.01192892,1249.7,1249.6,0.16581595]
[1672907853891,11.51192892,1249.7,1249.6,0.16581595]
[1672907854107,11.51192892,1249.7,1249.6,0.14923436]
[1672907854729,16.51192892,1249.7,1249.6,0.14923436]
[1672907855210,18.94706181,1249.7,1249.6,0.14923436]
[1672907857766,42.95282181,1249.7,1249.6,0.14923436]
[1672907857980,48.51960892,1249.7,1249.6,0.14923436]
[1672907860662,43.51960892,1249.7,1249.6,0.14923436]
[1672907860932,35.51768892,1249.7,1249.6,0.14923436]
[1672907861456,37.01768892,1249.7,1249.6,0.14923436]
[1672907861605,45.01960892,1249.7,1249.6,0.14923436]
[1672907862187,32.07176,1249.7,1249.6,0.14923436]
[1672907862678,36.25892603,1249.7,1249.6,0.14923436]
[1672907863821,28.25700603,1249.7,1249.6,0.14923436]
[1672907864682,36.25892603,1249.7,1249.6,0.14923436]
[1672907865006,20.30508603,1249.7,1249.6,0.14923436]
[1672907865217,28.30700603,1249.7,1249.6,0.14923436]
[1672907865451,36.30892603,1249.7,1249.6,0.14923436]
[1672907866235,20.30508603,1249.7,1249.6,0.14923436]
[1672907866761,25.30700603,1249.7,1249.6,0.14923436]
[1672907867231,29.12176,1249.7,1249.6,0.14923436]
[1672907868918,8.70428377,1249.7,1249.6,0.14923436]
[1672907869242,8.05463978,1249.7,1249.6,0.14923436]
[1672907870172,3.05463978,1249.7,1249.6,0.14923436]
[1672907870343,2.98863978,1249.7,1249.6,0.14923436]
[1672907870554,11.65562377,1249.8,1249.6,0.14923436]
[1672907870967,11.70562377,1249.8,1249.6,0.14923436]
[1672907871177,2.98756296,1249.7,1249.6,0.14923436]
[1672907871627,2.98756296,1249.7,1249.6,4.13838387]
[1672907871968,2.98756296,1249.7,1249.6,4.9859984]
[1672907873727,5.37724578,1249.7,1249.6,4.9859984]
[1672907873956,5.44324578,1249.7,1249.6,4.9859984]
[1672907874593,1.26102804,1249.7,1249.6,4.9859984]
[1672907874766,5.37711575,1249.7,1249.6,4.9859984]
[1672907875117,1.26102083,1249.7,1249.6,4.9859984]
[1672907875329,11.10491208,1249.8,1249.6,4.9859984]
[1672907875498,1.19502083,1249.7,1249.6,4.9859984]
[1672907875706,5.37760462,1249.7,1249.6,4.9859984]
[1672907875900,5.44360462,1249.7,1249.6,4.9859984]
[1672907877375,2.45604166,1249.7,1249.6,4.9859984]
[1672907877585,2.39004166,1249.7,1249.6,4.9859984]
[1672907877833,4.18067511,1249.7,1249.6,4.98342045]
[1672907879530,2.39004166,1249.7,1249.6,4.98342045]
[1672907880105,5.37760462,1249.7,1249.6,4.98342045]
[1672907880315,5.44360462,1249.7,1249.6,4.98342045]
[1672907880736,13.44552462,1249.7,1249.6,4.98342045]
[1672907881164,5.44360462,1249.7,1249.6,4.98342045]
[1672907882966,11.05548296,1249.7,1249.6,4.98342045]
[1672907883156,13.44256299,1249.7,1249.6,4.98342045]
[1672907884133,5.44064299,1249.7,1249.6,4.98342045]
[1672907884989,2.45308003,1249.7,1249.6,4.98342045]
[1672907885201,2.38708003,1249.7,1249.6,4.98342045]
[1672907885527,4.17765524,1249.7,1249.6,4.98342045]
[1672907889180,5.37464299,1249.7,1249.6,4.98342045]
[1672907889385,4.2436935,1249.7,1249.6,4.98342045]
[1672907889631,4.1776935,1249.7,1249.6,4.98342045]
[1672907891632,4.1776935,1249.7,1249.6,8.48342045]
[1672907891851,4.1776935,1249.7,1249.6,5.04942045]
[1672907892036,4.1776935,1249.7,1249.6,13.05198045]
[1672907894606,4.1776935,1249.7,1249.6,21.05454045]
[1672907895818,4.1776935,1249.7,1249.6,13.05198045]
[1672907896032,5.37464299,1249.7,1249.6,13.05198045]
[1672907896261,5.44064299,1249.7,1249.6,13.05198045]
[1672907897831,5.44064299,1249.7,1249.6,21.05454045]
[1672907898158,3.05356296,1249.7,1249.6,21.05454045]
[1672907898386,5.37755434,1249.7,1249.6,21.05454045]
[1672907898624,3.05356296,1249.7,1249.6,21.05454045]
[1672907898804,2.98756296,1249.7,1249.6,21.05454045]
[1672907901676,2.98756296,1249.7,1249.6,13.05198045]
[1672907902048,2.98756296,1249.7,1249.6,13.04928747]
[1672907903259,27.70855377,1249.8,1249.6,13.04928747]
[1672907903423,27.70855377,1249.8,1249.6,12.20167294]
[1672907903834,0.05,1249.7,1249.6,12.20167294]
[1672907904502,3.04065183,1249.7,1249.6,20.20423294]
[1672907905166,3.04065183,1249.7,1249.6,28.20679294]
[1672907908041,2.99065183,1249.7,1249.6,28.20679294]
[1672907908418,2.99065183,1249.7,1249.6,32.73577337]
[1672907910241,2.99065183,1249.7,1249.6,24.73321337]
[1672907910594,2.99065183,1249.7,1249.6,32.73577337]
[1672907913982,2.99065183,1249.7,1249.6,24.73321337]
[1672907914205,3.04065183,1249.7,1249.6,24.73321337]
[1672907914557,3.04065183,1249.7,1249.6,8.72809337]
[1672907914775,3.04065183,1249.7,1249.6,4.19911294]
[1672907915017,3.04065183,1249.7,1249.6,4.13311294]
[1672907915184,0.05,1249.7,1249.6,4.13311294]
[1672907916253,3.63828377,1249.8,1249.6,4.13311294]
[1672907917771,3.58828377,1249.7,1249.6,4.13311294]
[1672907919502,3.70428377,1249.8,1249.6,4.13311294]
[1672907919712,3.63828377,1249.8,1249.6,4.13311294]
[1672907919958,3.58828377,1249.7,1249.6,4.13311294]
[1672907922441,3.58828377,1249.7,1249.6,4.13091094]
[1672907922651,3.58828377,1249.7,1249.6,4.95302801]
[1672907923383,12.30451603,1249.8,1249.6,4.95302801]
[1672907923591,6.10816603,1249.7,1249.6,0.9638785]
[1672907923804,30.17992603,1249.7,1249.6,0.9638785]
[1672907924013,30.93868892,1249.7,1249.6,0.86749066]
[1672907924274,33.93868892,1249.7,1249.6,0.86749066]
[1672907924482,39.53928892,1249.7,1249.6,0.86749066]
[1672907924712,41.29346544,1249.7,1249.6,0.86749066]
[1672907926070,36.34753652,1249.7,1249.6,0.86749066]
[1672907926216,41.29346544,1249.7,1249.6,0.86749066]
[1672907928027,36.34753652,1249.7,1249.6,0.86749066]
[1672907928466,40.52853926,1249.7,1249.6,0.86749066]
[1672907930475,50.55352459,1249.7,1249.5,0.2294224]
[1672907930644,41.91203456,1249.6,1249.5,0.2294224]
[1672907930857,46.35714906,1249.6,1249.4,0.24696942]
[1672907931064,5.50348292,1249.5,1249.4,0.24696942]
[1672907931275,30.17616106,1249.5,1249.4,0.24696942]
[1672907931503,30.17616106,1249.5,1249.4,0.22227248]
[1672907931504,33.17616106,1249.5,1249.4,0.22227248]
[1672907932143,33.9966,1249.5,1249.4,0.22227248]
[1672907932377,39.11640735,1249.5,1249.4,0.22227248]
[1672907932738,42.69638939,1249.5,1249.4,0.22227248]
[1672907933196,43.29596841,1249.5,1249.4,0.22227248]
[1672907935319,39.11640735,1249.5,1249.4,0.22227248]
[1672907935905,42.692156,1249.5,1249.4,0.22227248]
[1672907936802,43.292856,1249.5,1249.4,0.22227248]
[1672907938608,43.292856,1249.5,1249.4,0.20004524]
[1672907938900,39.92722517,1249.5,1249.4,0.20004524]
[1672907942354,39.32652517,1249.5,1249.4,0.20004524]
[1672907943486,42.68947731,1249.5,1249.4,0.20004524]
[1672907944269,43.29328972,1249.5,1249.4,0.20004524]
[1672907944843,43.89398972,1249.5,1249.4,0.20004524]
[1672907945610,39.92385075,1249.5,1249.4,0.18004072]
[1672907945826,43.28431368,1249.5,1249.4,0.18004072]
[1672907946248,39.92385075,1249.5,1249.4,0.18004072]
[1672907946651,39.32315075,1249.5,1249.4,0.18004072]
[1672907947850,39.35774075,1249.5,1249.4,0.18004072]
[1672907948968,37.43674075,1249.5,1249.4,0.18004072]
[1672907949620,33.86436652,1249.5,1249.4,0.18004072]
[1672907949774,37.43674075,1249.5,1249.4,0.18004072]
[1672907952308,33.86436652,1249.5,1249.4,0.18004072]
[1672907952533,33.86436652,1249.5,1249.4,0.16203665]
[1672907952836,38.04392758,1249.5,1249.4,0.16203665]
[1672907953094,41.40721515,1249.5,1249.4,0.16203665]
[1672907953264,38.04392758,1249.5,1249.4,0.16203665]
[1672907953618,37.22758916,1249.5,1249.4,0.16203665]
[1672907954089,38.04392758,1249.5,1249.4,0.16203665]
[1672907954296,41.40747053,1249.5,1249.4,0.16203665]
[1672907955092,38.04392758,1249.5,1249.4,0.16203665]
[1672907959580,38.04392758,1249.5,1249.4,0.14583299]
[1672907959933,33.86436652,1249.5,1249.4,0.14583299]
[1672907960350,38.81029544,1249.5,1249.4,0.14583299]
[1672907960566,33.86436652,1249.5,1249.4,0.14583299]
[1672907960717,33.81029544,1249.5,1249.4,0.14583299]
[1672907961345,37.17420232,1249.5,1249.4,0.14583299]
[1672907961821,38.81029544,1249.5,1249.4,0.14583299]
[1672907962027,42.17418254,1249.5,1249.4,0.14583299]
[1672907962416,38.81029544,1249.5,1249.4,0.14583299]
[1672907962626,44.10118493,1249.5,1249.4,0.14583299]
[1672907964514,40.73929544,1249.5,1249.4,0.14583299]
[1672907966552,44.10046553,1249.5,1249.4,0.10580415]
[1672907966709,44.10046567,1249.5,1249.4,0.10580415]
[1672907967555,39.15453675,1249.5,1249.4,0.10580415]
[1672907967780,39.09611604,1249.5,1249.4,0.10580415]
[1672907967991,30.79336652,1249.5,1249.4,0.10580415]
[1672907968329,30.77936652,1249.5,1249.4,0.10580415]
[1672907968514,35.72228074,1249.5,1249.4,0.10580415]
[1672907968724,40.72228074,1249.5,1249.4,0.10580415]
[1672907971878,38.80728074,1249.5,1249.4,0.10580415]
[1672907972976,33.86436652,1249.5,1249.4,0.10580415]